{"text_format":"3","workbook":"xlsx","n_sheets":26,"sheets":["Početak","1","2","3","4","5","6","7","8","9","10","11","12","13","14","15","16","17","18","19","20","21","22","23","24","Saznajte više"],"not_rendered":{"images":24,"defined_names":5,"pivot_tables":19},"read":"whole","date_system":"1900"}

{"sheet":"Početak","index":0,"n_rows":5,"n_cols":1,"rows_kept":5}
["Dobro došli\nUputstva za čitače ekrana: Bolje iskoristite izvedene tabele. Jednostavna izvedena tabela pruža sveobuhvatan rezime podataka, ali ponekad su vam neophodni detaljni odgovori na određena pitanja. Tada može da vam pomogne dodavanje još polja kolone i reda. \nUputstva ukazuju na to na koje ćelije treba da se pomerite da biste koristili funkciju ili na dodatni materijal za čitanje.\nDa biste započeli, pritisnite kombinaciju tastera CTRL+PAGE DOWN."]
["Bolje iskoristite izvedene tabele"]
["Jednostavna izvedena tabela pruža sveobuhvatan rezime podataka,\nali ponekad su vam neophodni detaljni odgovori na određena pitanja.\nTada može da vam pomogne dodavanje još polja kolone i reda."]
["KORISNO JE ZNATI\nDa li ste prošli kroz prvo uputstvo? Ako niste, izaberite stavke „Datoteka“ > „Novo“ i pronađite stavku „Napravite svoju prvu izvedenu tabelu“."]
["Vratite se na vrh tako što ćete pritisnuti kombinaciju tastera CTRL+HOME. Da biste započeli obilazak, pritisnite kombinaciju tastera CTRL+PAGE DOWN."]

{"sheet":"1","index":1,"n_rows":16,"n_cols":9,"rows_kept":16}
["U prvom uputstvu upoznali smo vas sa konceptom izvedena tabela. Objasnili smo i na koji način možete da koristite polje red kao uslov koji razdvaja polje vrednost.   "]
["Ćelije od H10 do I14 sadrže izvedenu tabelu koja rezimira podatke u ćelijama od B8 do E16. Izvedena tabela ima dve kolone: „Kupac“ i „Zbir od Iznos“. Kolona „Kupac“ sadrži vrednosti „Tata“, „Mama“, „Tijana“ i „Konačni zbir“. Kolona „Zbir od Iznos“ sadrži vrednosti 220 RSD, 270 RSD, 810 RSD i 1.300 RSD. Kolonu „Kupac“ čini polje reda, a kolonu „Zbir od Iznos“ čini polje za vrednost."]
["Da biste nastavili sa ovim uputstvom, pritisnite kombinaciju tastera CTRL+PAGE DOWN. Da biste se vratili na prethodni list, pritisnite kombinaciju tastera CTRL+PAGE UP."]
[]
[]
[]
[]
[null,"Datum","Kupac","Tip","Iznos"]
["Ovaj primer pokazuje kako polje reda...","2017-01-01","Tata","Pokloni",{"v":95,"d":"95 RSD"}]
["...razdvaja polje za vrednost.","2017-01-15","Mama","Hrana",{"v":325,"d":"325 RSD"},null,null,"Kupac","Zbir od Iznos"]
[null,"2017-01-17","Mama","Karte",{"v":250,"d":"250 RSD"},null,null,"Tata",{"v":220,"d":"220 RSD"}]
[null,"2017-01-21","Tata","Hrana",{"v":125,"d":"125 RSD"},null,null,"Tijana",{"v":270,"d":"270 RSD"}]
[null,"2017-02-02","Mama","Hrana",{"v":235,"d":"235 RSD"},null,null,"Mama",{"v":810,"d":"810 RSD"}]
[null,"2017-02-20","Tijana","Muzika",{"v":20,"d":"20 RSD"},null,null,"Konačni zbir",{"v":1300,"d":"1,300 RSD"}]
[null,"2017-02-25","Tijana","Karte",{"v":125,"d":"125 RSD"}]
[null,"2017-02-25","Tijana","Sport",{"v":125,"d":"125 RSD"}]

{"sheet":"2","index":2,"n_rows":108,"n_cols":7,"rows_kept":108}
["Ali kada prvi put pogledate izvedena tabela, možete da otkrijete da vam je potrebno više odgovora iz nje."]
["Kada prvi put pogledate izvedenu tabelu, možete da se zapitate sledeće: „Kada se desila ova kupovina?“, „Na šta je svaka od osoba potrošila novac?“ ili „Šta je to mama kupila što je bilo tako skupo?“."]
["U ovom primeru, ćelije od F11 do G15 prikazuju istu izvedenu tabelu sa dve kolone kao i pre. Kolona „Kupac“ predstavlja polje reda i sadrži vrednosti „Tata“, „Mama“, „Tijana“ i „Konačni zbir“. Kolona „Zbir od Iznos“ predstavlja polje za vrednost i sadrži vrednosti 220 RSD, 270 RSD, 810 RSD i 1.300 RSD. "]
["Da biste nastavili sa ovim uputstvom, pritisnite kombinaciju tastera CTRL+PAGE DOWN. Da biste se vratili na prethodni list, pritisnite kombinaciju tastera CTRL+PAGE UP."]
[]
[]
[]
[]
[]
[]
[{"$nulls":5},"Kupac","Zbir od Iznos"]
[{"$nulls":5},"Tata",{"v":220,"d":"220 RSD"}]
[{"$nulls":5},"Tijana",{"v":270,"d":"270 RSD"}]
[{"$nulls":5},"Mama",{"v":810,"d":"810 RSD"}]
[{"$nulls":5},"Konačni zbir",{"v":1300,"d":"1,300 RSD"}]
{"$rows_empty":84}
[null,"Datum","Kupac","Tip","Iznos"]
[null,"2017-01-01","Tata","Pokloni",{"v":95,"d":"95 RSD"}]
[null,"2017-01-15","Mama","Hrana",{"v":325,"d":"325 RSD"}]
[null,"2017-01-17","Mama","Karte",{"v":250,"d":"250 RSD"}]
[null,"2017-01-21","Tata","Hrana",{"v":125,"d":"125 RSD"}]
[null,"2017-02-02","Mama","Hrana",{"v":235,"d":"235 RSD"}]
[null,"2017-02-20","Tijana","Muzika",{"v":20,"d":"20 RSD"}]
[null,"2017-02-25","Tijana","Karte",{"v":125,"d":"125 RSD"}]
[null,"2017-02-25","Tijana","Sport",{"v":125,"d":"125 RSD"}]

{"sheet":"3","index":3,"n_rows":108,"n_cols":7,"rows_kept":108}
["To su sve dobra pitanja, ali hajde da se na trenutak fokusiramo samo na jedno."]
["„Na šta je svaka od osoba potrošila novac?“"]
["Radi reference, ćelije od F11 do G15 prikazuju istu izvedenu tabelu sa dve kolone kao i pre. Kolona „Kupac“ predstavlja polje reda i sadrži vrednosti „Tata“, „Mama“, „Tijana“ i „Konačni zbir“. Kolona „Zbir od Iznos“ predstavlja polje za vrednost i sadrži vrednosti 220 RSD, 270 RSD, 810 RSD i 1.300 RSD. "]
["Da biste nastavili sa ovim uputstvom, pritisnite kombinaciju tastera CTRL+PAGE DOWN. Da biste se vratili na prethodni list, pritisnite kombinaciju tastera CTRL+PAGE UP."]
[]
[]
[]
[]
[]
[]
[{"$nulls":5},"Kupac","Zbir od Iznos"]
[{"$nulls":5},"Mama",{"v":810,"d":"810 RSD"}]
[{"$nulls":5},"Tata",{"v":220,"d":"220 RSD"}]
[{"$nulls":5},"Tijana",{"v":270,"d":"270 RSD"}]
[{"$nulls":5},"Konačni zbir",{"v":1300,"d":"1,300 RSD"}]
{"$rows_empty":84}
[null,"Datum","Kupac","Tip","Iznos"]
[null,"2017-01-01","Tata","Pokloni",{"v":95,"d":"95 RSD"}]
[null,"2017-01-15","Mama","Hrana",{"v":325,"d":"325 RSD"}]
[null,"2017-01-17","Mama","Karte",{"v":250,"d":"250 RSD"}]
[null,"2017-01-21","Tata","Hrana",{"v":125,"d":"125 RSD"}]
[null,"2017-02-02","Mama","Hrana",{"v":235,"d":"235 RSD"}]
[null,"2017-02-20","Tijana","Muzika",{"v":20,"d":"20 RSD"}]
[null,"2017-02-25","Tijana","Karte",{"v":125,"d":"125 RSD"}]
[null,"2017-02-25","Tijana","Sport",{"v":125,"d":"125 RSD"}]

{"sheet":"4","index":4,"n_rows":108,"n_cols":9,"rows_kept":108}
["Poslednje pitanje koje smo postavili bilo je „Na šta je svaka od osoba potrošila novac?“."]
["Odgovorili smo na njega tako što smo dodali polje kolona za stavku „Tip“. Izvedena tabela zbog toga sada ima pet novih kolona koje pokazuju tip kupovine koju je obavila svaka osoba. "]
["Nova izvedena tabela sada se proteže od ćelije C10 do ćelije I15 i sadrži kolone za stavke „Kupac“, „Hrana“, „Muzika“, „Sport“, „Karte“, „Pokloni“ i „Konačni zbir“. Polja „Kupac“ i „Konačni zbir“ ista su kao pre, a nove kolone sa detaljima nalaze se između njih."]
["Da biste nastavili sa ovim uputstvom, pritisnite kombinaciju tastera CTRL+PAGE DOWN. Da biste se vratili na prethodni list, pritisnite kombinaciju tastera CTRL+PAGE UP."]
[]
[]
[]
[]
[]
[{"$nulls":3},"Tip"]
[{"$nulls":3},"Hrana","Muzika","Sport","Karte","Pokloni","Konačni zbir"]
[null,null,"Zbir od Iznos",{"v":685,"d":"685 RSD"},{"v":20,"d":"20 RSD"},{"v":125,"d":"125 RSD"},{"v":375,"d":"375 RSD"},{"v":95,"d":"95 RSD"},{"v":1300,"d":"1,300 RSD"}]
{"$rows_empty":87}
[null,"Datum","Kupac","Tip","Iznos"]
[null,"2017-01-01","Tata","Pokloni",{"v":95,"d":"95 RSD"}]
[null,"2017-01-15","Mama","Hrana",{"v":325,"d":"325 RSD"}]
[null,"2017-01-17","Mama","Karte",{"v":250,"d":"250 RSD"}]
[null,"2017-01-21","Tata","Hrana",{"v":125,"d":"125 RSD"}]
[null,"2017-02-02","Mama","Hrana",{"v":235,"d":"235 RSD"}]
[null,"2017-02-20","Tijana","Muzika",{"v":20,"d":"20 RSD"}]
[null,"2017-02-25","Tijana","Karte",{"v":125,"d":"125 RSD"}]
[null,"2017-02-25","Tijana","Sport",{"v":125,"d":"125 RSD"}]

{"sheet":"5","index":5,"n_rows":108,"n_cols":9,"rows_kept":108}
["Ako izvedena tabela nije jasna, isprobajte ovo: Čitajte sleva, zatim sa vrha, a zatim sa dna. U dolenavedenom primeru, polje „Tata“ nalazi se u ćeliji C12, polje „Hrana“ za 125 USD u ćeliji D12, polje „Pokloni“ za 95 USD u ćeliji E12, a polje „Konačni zbir“ za 220 USD u ćeliji I12. Redovi 13 i 14 prikazuju detalje za polja „Tijana“ i „Mama“, a red 15 prikazuje polje „Konačni zbir“."]
["Da biste nastavili sa ovim uputstvom, pritisnite kombinaciju tastera CTRL+PAGE DOWN. Da biste se vratili na prethodni list, pritisnite kombinaciju tastera CTRL+PAGE UP."]
{"$rows_empty":7}
[null,null,"Zbir od Iznos","Tip"]
[null,null,"Kupac","Hrana","Pokloni","Muzika","Sport","Karte","Konačni zbir"]
[null,null,"Tata",{"v":125,"d":"125 RSD"},{"v":95,"d":"95 RSD"},{"$nulls":3},{"v":220,"d":"220 RSD"}]
[null,null,"Tijana",null,null,{"v":20,"d":"20 RSD"},{"v":125,"d":"125 RSD"},{"v":125,"d":"125 RSD"},{"v":270,"d":"270 RSD"}]
[null,null,"Mama",{"v":560,"d":"560 RSD"},{"$nulls":3},{"v":250,"d":"250 RSD"},{"v":810,"d":"810 RSD"}]
[null,null,"Konačni zbir",{"v":685,"d":"685 RSD"},{"v":95,"d":"95 RSD"},{"v":20,"d":"20 RSD"},{"v":125,"d":"125 RSD"},{"v":375,"d":"375 RSD"},{"v":1300,"d":"1,300 RSD"}]
{"$rows_empty":84}
[null,"Datum","Kupac","Tip","Iznos"]
[null,"2017-01-01","Tata","Pokloni",{"v":95,"d":"95 RSD"}]
[null,"2017-01-15","Mama","Hrana",{"v":325,"d":"325 RSD"}]
[null,"2017-01-17","Mama","Karte",{"v":250,"d":"250 RSD"}]
[null,"2017-01-21","Tata","Hrana",{"v":125,"d":"125 RSD"}]
[null,"2017-02-02","Mama","Hrana",{"v":235,"d":"235 RSD"}]
[null,"2017-02-20","Tijana","Muzika",{"v":20,"d":"20 RSD"}]
[null,"2017-02-25","Tijana","Karte",{"v":125,"d":"125 RSD"}]
[null,"2017-02-25","Tijana","Sport",{"v":125,"d":"125 RSD"}]

{"sheet":"6","index":6,"n_rows":3,"n_cols":1,"rows_kept":3}
["Nemojte ovo raditi sada, ali za nekoliko koraka radićete sa izvedenom tabelom. Prva stvar koju radite jeste pravljenje detalja u polju kolone. To radite tako što postavljate polje „Tip“ u oblast polja kolone."]
["Slika liste polja izvedene tabele prikazuje kursor sa strelicom koji prevlači polje „Tip“ u oblast „Kolone“"]
["Da biste nastavili sa ovim uputstvom, pritisnite kombinaciju tastera CTRL+PAGE DOWN. Da biste se vratili na prethodni list, pritisnite kombinaciju tastera CTRL+PAGE UP."]

{"sheet":"7","index":7,"n_rows":108,"n_cols":8,"rows_kept":108}
["1. Oblast izvedene tabele za ovaj primer nalazi se u ćelijama od B13 do C17. Idite na bilo koju od tih ćelija."]
["2. Pritisnite tastere ALT+JN, L da biste pokrenuli listu polja izvedene tabele. Fokus se podrazumevano postavlja na okvir za tekst „Iyvršite pretraga“: Uređivanje Iyvršite pretraga"]
["3. Pritiskajte tastere sa strelicama da biste izabrali polje „Tip“. Kada ga izaberete, pritisnite RAZMAKNICU da biste dodali polje „Tip“ u oblast „Redovi“. "]
["4. Pritisnite taster TAB da biste izabrali polje tipa. Pritisnite taster ENTER, a zatim pritisnite tastere sa strelicama da biste izabrali stavku Premesti u oznake kolona i pritisnite taster ENTER da biste dodali polje tip u oblast kolone. Pritisnite tastere ALT+JN+L da biste napustili okno polja izvedene tabele."]
["Da biste nastavili sa ovim uputstvom, pritisnite kombinaciju tastera CTRL+PAGE DOWN. Da biste se vratili na prethodni list, pritisnite kombinaciju tastera CTRL+PAGE UP."]
[]
[]
[]
[{"$nulls":7},{"$f":"IF(AND($B$14=\"Kupac\",$H$17=810),\"Svaka čast! Postavili ste polje\",\" \")","v":" "}]
[{"$nulls":7},{"$f":"IF(AND($B$14=\"Kupac\",$H$17=810),\"prve kolone. Kliknite na dugme.\",\" \")","v":" "}]
[{"$nulls":7},{"$f":"IF(AND($B$14=\"Kupac\",$H$17=810),\"„Sledeće“ da biste nastavili...\",\" \")","v":" "}]
[]
[null,"Kupac","Zbir od Iznos"]
[null,"Tata",{"v":220,"d":"220 RSD"}]
[null,"Tijana",{"v":270,"d":"270 RSD"}]
[null,"Mama",{"v":810,"d":"810 RSD"}]
[null,"Konačni zbir",{"v":1300,"d":"1,300 RSD"}]
{"$rows_empty":82}
[null,"Datum","Kupac","Tip","Iznos"]
[null,"2017-01-01","Tata","Pokloni",{"v":95,"d":"95 RSD"}]
[null,"2017-01-15","Mama","Hrana",{"v":325,"d":"325 RSD"}]
[null,"2017-01-17","Mama","Karte",{"v":250,"d":"250 RSD"}]
[null,"2017-01-21","Tata","Hrana",{"v":125,"d":"125 RSD"}]
[null,"2017-02-02","Mama","Hrana",{"v":235,"d":"235 RSD"}]
[null,"2017-02-20","Tijana","Muzika",{"v":20,"d":"20 RSD"}]
[null,"2017-02-25","Tijana","Karte",{"v":125,"d":"125 RSD"}]
[null,"2017-02-25","Tijana","Sport",{"v":125,"d":"125 RSD"}]

{"sheet":"8","index":8,"n_rows":108,"n_cols":9,"rows_kept":108}
["Hajde da pregledamo izvedena tabela koju ste upravo napravili, ali ovoga puta smo dodali neke specijalne boje kako bi se razlikovala polja reda, polja kolone i polja za vrednost."]
["Polje reda proteže se od ćelije C10 do ćelije C13 i osenčeno je žutom bojom."]
["Polje kolone proteže se od ćelije D9 do ćelije H10 i osenčeno je narandžastom bojom."]
["Polje za vrednost proteže se od ćelije D11 do ćelije H13 i osenčeno je plavom bojom."]
["Da biste nastavili sa ovim uputstvom, pritisnite kombinaciju tastera CTRL+PAGE DOWN. Da biste se vratili na prethodni list, pritisnite kombinaciju tastera CTRL+PAGE UP."]
[]
[]
[]
[null,null,"Zbir od Iznos","Tip"]
[null,null,"Kupac","Hrana","Pokloni","Muzika","Sport","Karte","Konačni zbir"]
[null,null,"Tata",{"v":125,"d":"125 RSD"},{"v":95,"d":"95 RSD"},{"$nulls":3},{"v":220,"d":"220 RSD"}]
[null,null,"Tijana",null,null,{"v":20,"d":"20 RSD"},{"v":125,"d":"125 RSD"},{"v":125,"d":"125 RSD"},{"v":270,"d":"270 RSD"}]
[null,null,"Mama",{"v":560,"d":"560 RSD"},{"$nulls":3},{"v":250,"d":"250 RSD"},{"v":810,"d":"810 RSD"}]
[null,null,"Konačni zbir",{"v":685,"d":"685 RSD"},{"v":95,"d":"95 RSD"},{"v":20,"d":"20 RSD"},{"v":125,"d":"125 RSD"},{"v":375,"d":"375 RSD"},{"v":1300,"d":"1,300 RSD"}]
{"$rows_empty":85}
[null,"Datum","Kupac","Tip","Iznos"]
[null,"2017-01-01","Tata","Pokloni",{"v":95,"d":"95 RSD"}]
[null,"2017-01-15","Mama","Hrana",{"v":325,"d":"325 RSD"}]
[null,"2017-01-17","Mama","Karte",{"v":250,"d":"250 RSD"}]
[null,"2017-01-21","Tata","Hrana",{"v":125,"d":"125 RSD"}]
[null,"2017-02-02","Mama","Hrana",{"v":235,"d":"235 RSD"}]
[null,"2017-02-20","Tijana","Muzika",{"v":20,"d":"20 RSD"}]
[null,"2017-02-25","Tijana","Karte",{"v":125,"d":"125 RSD"}]
[null,"2017-02-25","Tijana","Sport",{"v":125,"d":"125 RSD"}]

{"sheet":"9","index":9,"n_rows":3,"n_cols":1,"rows_kept":3}
["Evo još jednog načina na koji možete da razmišljate o tome: Polje reda se nalazi sa leve strane, a polje kolone na vrhu. Svako od njih pruža uslov polju za vrednost, koje ih sabira."]
["Konceptualna slika prikazuje pravougaonu oblast sa četiri odeljka sa žutim poljem reda sa donje leve strane, narandžastim poljem kolone sa gornje desne strane i plavim poljem za vrednost sa donje desne strane."]
["Da biste nastavili sa ovim uputstvom, pritisnite kombinaciju tastera CTRL+PAGE DOWN. Da biste se vratili na prethodni list, pritisnite kombinaciju tastera CTRL+PAGE UP."]

{"sheet":"10","index":10,"n_rows":3,"n_cols":1,"rows_kept":3}
["Razmišljate o tome na taj način kada koristite listu polja. Polje red se nalazi sa leve strane, a polje kolona na vrhu. Svako od njih pruža uslov polje vrednost, koje ih sabira."]
["Konceptualna slika prikazuje listu polja izvedene tabele sa žutim poljem reda sa donje leve strane, narandžastim poljem kolone sa gornje desne strane i plavim poljem za vrednost sa donje desne strane."]
["Da biste nastavili sa ovim uputstvom, pritisnite kombinaciju tastera CTRL+PAGE DOWN. Da biste se vratili na prethodni list, pritisnite kombinaciju tastera CTRL+PAGE UP."]

{"sheet":"11","index":11,"n_rows":121,"n_cols":24,"rows_kept":121}
["Stvar koju treba da imate na umu: Ako polje kolona dodaje mnogo kolona izvedena tabela, ona postaje veoma široka. "]
["U ovom primeru, izvedena tabela se sada proteže od ćelije C10 do ćelije X15 jer je polje kolona dodalo 20 novih kolone. To je mnogo kolona! Zbog toga će ljudi morati mnogo da se pomeraju..."]
["Da biste nastavili sa ovim uputstvom, pritisnite kombinaciju tastera CTRL+PAGE DOWN. Da biste se vratili na prethodni list, pritisnite kombinaciju tastera CTRL+PAGE UP."]
[]
[]
[]
[]
[]
[]
[null,null,"Zbir od Iznos","Tip"]
[null,null,"Kupac","Avionska karta","Časovi muzike","Elektronika","Gorivo","Hrana","Karte","Klupske članarine","Knjige","Medicinski troškovi","Muzika","Odeća","Osiguranje doma","Osiguranje vozila","Parking","Porezi","Sport","Stomatološki troškovi","Struja","Večere","Zdravstveno osiguranje","Konačni zbir"]
[null,null,"Mama",{"$nulls":3},{"v":74,"d":"74 RSD"},{"v":470,"d":"470 RSD"},null,{"v":125,"d":"125 RSD"},null,{"v":74,"d":"74 RSD"},null,null,{"v":235,"d":"235 RSD"},{"v":74,"d":"74 RSD"},{"$nulls":3},{"v":235,"d":"235 RSD"},{"v":70,"d":"70 RSD"},null,{"v":70,"d":"70 RSD"},{"v":1427,"d":"1,427 RSD"}]
[null,null,"Tata",{"v":500,"d":"500 RSD"},{"$nulls":13},{"v":500,"d":"500 RSD"},{"v":1000,"d":"1,000 RSD"},{"$nulls":4},{"v":2000,"d":"2,000 RSD"}]
[null,null,"Tijana",null,{"v":250,"d":"250 RSD"},{"v":125,"d":"125 RSD"},null,null,{"v":125,"d":"125 RSD"},null,{"v":250,"d":"250 RSD"},null,{"v":20,"d":"20 RSD"},{"v":125,"d":"125 RSD"},null,null,{"v":20,"d":"20 RSD"},{"$nulls":4},{"v":20,"d":"20 RSD"},null,{"v":935,"d":"935 RSD"}]
[null,null,"Konačni zbir",{"v":500,"d":"500 RSD"},{"v":250,"d":"250 RSD"},{"v":125,"d":"125 RSD"},{"v":74,"d":"74 RSD"},{"v":470,"d":"470 RSD"},{"v":125,"d":"125 RSD"},{"v":125,"d":"125 RSD"},{"v":250,"d":"250 RSD"},{"v":74,"d":"74 RSD"},{"v":20,"d":"20 RSD"},{"v":125,"d":"125 RSD"},{"v":235,"d":"235 RSD"},{"v":74,"d":"74 RSD"},{"v":20,"d":"20 RSD"},{"v":500,"d":"500 RSD"},{"v":1000,"d":"1,000 RSD"},{"v":235,"d":"235 RSD"},{"v":70,"d":"70 RSD"},{"v":20,"d":"20 RSD"},{"v":70,"d":"70 RSD"},{"v":4362,"d":"4,362 RSD"}]
{"$rows_empty":84}
[null,"Datum","Kupac","Tip","Iznos"]
[null,"2017-01-17","Tata","Sport",{"v":1000,"d":"1,000 RSD"}]
[null,"2017-01-17","Tata","Avionska karta",{"v":500,"d":"500 RSD"}]
[null,"2017-01-17","Tata","Porezi",{"v":500,"d":"500 RSD"}]
[null,"2017-02-20","Tijana","Muzika",{"v":20,"d":"20 RSD"}]
[null,"2017-02-25","Tijana","Karte",{"v":125,"d":"125 RSD"}]
[null,"2017-01-21","Tijana","Knjige",{"v":250,"d":"250 RSD"}]
[null,"2017-02-20","Tijana","Večere",{"v":20,"d":"20 RSD"}]
[null,"2017-02-25","Tijana","Odeća",{"v":125,"d":"125 RSD"}]
[null,"2017-01-21","Tijana","Časovi muzike",{"v":250,"d":"250 RSD"}]
[null,"2017-02-20","Tijana","Parking",{"v":20,"d":"20 RSD"}]
[null,"2017-02-25","Tijana","Elektronika",{"v":125,"d":"125 RSD"}]
[null,"2017-01-01","Mama","Gorivo",{"v":74,"d":"74 RSD"}]
[null,"2017-01-15","Mama","Hrana",{"v":235,"d":"235 RSD"}]
[null,"2017-01-21","Mama","Klupske članarine",{"v":125,"d":"125 RSD"}]
[null,"2017-02-02","Mama","Hrana",{"v":235,"d":"235 RSD"}]
[null,"2017-01-01","Mama","Medicinski troškovi",{"v":74,"d":"74 RSD"}]
[null,"2017-01-15","Mama","Struja",{"v":70,"d":"70 RSD"}]
[null,"2017-02-02","Mama","Stomatološki troškovi",{"v":235,"d":"235 RSD"}]
[null,"2017-01-01","Mama","Osiguranje vozila",{"v":74,"d":"74 RSD"}]
[null,"2017-01-15","Mama","Zdravstveno osiguranje",{"v":70,"d":"70 RSD"}]
[null,"2017-02-02","Mama","Osiguranje doma",{"v":235,"d":"235 RSD"}]

{"sheet":"12","index":12,"n_rows":119,"n_cols":5,"rows_kept":119}
["Postoji alternativa veoma širokim izvedenim tabelama: Umesto njih možete da koristite polje drugog reda. Polje drugog reda pojavljuje se uvučeno ispod polje prvog reda."]
["U ovom primeru, izvedena tabela proteže se od ćelije D8 do ćelije E32. Ona prikazuje polja „Tata“, „Tijana“ i „Mama“ kao polja prvog reda u koloni D. Tipovi troškova nalaze se ispod njih kao polja drugog reda sa stavkama kao što su „Sport“, „Avionska karta“, „Večere“ itd."]
["KORISNO JE ZNATI\nPolje drugog reda čini izvedenu tabelu vertikalno orijentisanom umesto horizontalno. Nekim osobama je lakše da čitaju vertikalne izvedene tabele jer u njihovom slučaju nije neophodno mnogo pomeranja sa jedne strane na drugu."]
["KOMANDA „IZGOVORI“ U PROGRAMU EXCEL\nLjudi ponekad polje drugog reda zovu „polje sekundarnog reda“."]
["Da biste nastavili sa ovim uputstvom, pritisnite kombinaciju tastera CTRL+PAGE DOWN. Da biste se vratili na prethodni list, pritisnite kombinaciju tastera CTRL+PAGE UP."]
[]
[]
[{"$nulls":3},"Oznake redova","Zbir od Iznos"]
[{"$nulls":3},"Tata",{"v":2000,"d":"2,000 RSD"}]
[{"$nulls":3},"Avionska karta",{"v":500,"d":"500 RSD"}]
[{"$nulls":3},"Porezi",{"v":500,"d":"500 RSD"}]
[{"$nulls":3},"Sport",{"v":1000,"d":"1,000 RSD"}]
[{"$nulls":3},"Tijana",{"v":935,"d":"935 RSD"}]
[{"$nulls":3},"Časovi muzike",{"v":250,"d":"250 RSD"}]
[{"$nulls":3},"Elektronika",{"v":125,"d":"125 RSD"}]
[{"$nulls":3},"Karte",{"v":125,"d":"125 RSD"}]
[{"$nulls":3},"Knjige",{"v":250,"d":"250 RSD"}]
[{"$nulls":3},"Muzika",{"v":20,"d":"20 RSD"}]
[{"$nulls":3},"Odeća",{"v":125,"d":"125 RSD"}]
[{"$nulls":3},"Parking",{"v":20,"d":"20 RSD"}]
[{"$nulls":3},"Večere",{"v":20,"d":"20 RSD"}]
[{"$nulls":3},"Mama",{"v":1427,"d":"1,427 RSD"}]
[{"$nulls":3},"Gorivo",{"v":74,"d":"74 RSD"}]
[{"$nulls":3},"Hrana",{"v":470,"d":"470 RSD"}]
[{"$nulls":3},"Klupske članarine",{"v":125,"d":"125 RSD"}]
[{"$nulls":3},"Medicinski troškovi",{"v":74,"d":"74 RSD"}]
[{"$nulls":3},"Osiguranje doma",{"v":235,"d":"235 RSD"}]
[{"$nulls":3},"Osiguranje vozila",{"v":74,"d":"74 RSD"}]
[{"$nulls":3},"Stomatološki troškovi",{"v":235,"d":"235 RSD"}]
[{"$nulls":3},"Struja",{"v":70,"d":"70 RSD"}]
[{"$nulls":3},"Zdravstveno osiguranje",{"v":70,"d":"70 RSD"}]
[{"$nulls":3},"Konačni zbir",{"v":4362,"d":"4,362 RSD"}]
{"$rows_empty":65}
[null,"Datum","Kupac","Tip","Iznos"]
[null,"2017-01-17","Tata","Sport",{"v":1000,"d":"1,000 RSD"}]
[null,"2017-01-17","Tata","Avionska karta",{"v":500,"d":"500 RSD"}]
[null,"2017-01-17","Tata","Porezi",{"v":500,"d":"500 RSD"}]
[null,"2017-02-20","Tijana","Muzika",{"v":20,"d":"20 RSD"}]
[null,"2017-02-25","Tijana","Karte",{"v":125,"d":"125 RSD"}]
[null,"2017-01-21","Tijana","Knjige",{"v":250,"d":"250 RSD"}]
[null,"2017-02-20","Tijana","Večere",{"v":20,"d":"20 RSD"}]
[null,"2017-02-25","Tijana","Odeća",{"v":125,"d":"125 RSD"}]
[null,"2017-01-21","Tijana","Časovi muzike",{"v":250,"d":"250 RSD"}]
[null,"2017-02-20","Tijana","Parking",{"v":20,"d":"20 RSD"}]
[null,"2017-02-25","Tijana","Elektronika",{"v":125,"d":"125 RSD"}]
[null,"2017-01-01","Mama","Gorivo",{"v":74,"d":"74 RSD"}]
[null,"2017-01-15","Mama","Hrana",{"v":235,"d":"235 RSD"}]
[null,"2017-01-21","Mama","Klupske članarine",{"v":125,"d":"125 RSD"}]
[null,"2017-02-02","Mama","Hrana",{"v":235,"d":"235 RSD"}]
[null,"2017-01-01","Mama","Medicinski troškovi",{"v":74,"d":"74 RSD"}]
[null,"2017-01-15","Mama","Struja",{"v":70,"d":"70 RSD"}]
[null,"2017-02-02","Mama","Stomatološki troškovi",{"v":235,"d":"235 RSD"}]
[null,"2017-01-01","Mama","Osiguranje vozila",{"v":74,"d":"74 RSD"}]
[null,"2017-01-15","Mama","Zdravstveno osiguranje",{"v":70,"d":"70 RSD"}]
[null,"2017-02-02","Mama","Osiguranje doma",{"v":235,"d":"235 RSD"}]

{"sheet":"13","index":13,"n_rows":3,"n_cols":1,"rows_kept":3}
["Na sledećem listu dodajete polje drugog reda. I to radite tako što ćete prevući polje „Tip“ ispod polja „Kupac“."]
["Slika liste polja izvedene tabele prikazuje kursor sa strelicom koji prevlači polje „Tip“ u oblast „Redovi“."]
["Da biste nastavili sa ovim uputstvom, pritisnite kombinaciju tastera CTRL+PAGE DOWN. Da biste se vratili na prethodni list, pritisnite kombinaciju tastera CTRL+PAGE UP."]

{"sheet":"14","index":14,"n_rows":122,"n_cols":9,"rows_kept":122}
["1. Oblast izvedene tabele za ovaj primer nalazi se u ćelijama od B13 do C17. Idite na bilo koju od tih ćelija. "]
["2. Pritisnite tastere ALT+JN, L da biste pokrenuli listu polja izvedene tabele. Fokus se podrazumevano postavlja na okvir za tekst „Iyvršite pretraga“: Otkucajte reči za pretragu ili uređivanje. Ne kucajte ništa, umesto toga jednom pritisnite taster Tab. NAPOMENA: Ako se lista polja ne pokrene, ponovo pritisnite kombinaciju tastera ALT+JN, a zatim taster L."]
["3. Pritisnite tastere sa strelicama da biste prešli na polje „Tip“. Pritisnite RAZMAKNICU da biste dodali polje „Tip“ u oblast „Redovi“. "]
["4. Pritisnite taster ESC da biste izašli iz okna sa polja izvedene tabele. "]
["Da biste nastavili sa ovim uputstvom, pritisnite kombinaciju tastera CTRL+PAGE DOWN. Da biste se vratili na prethodni list, pritisnite kombinaciju tastera CTRL+PAGE UP.",{"$nulls":7},{"$f":"IF(AND($B$15=\"Avionska karta\",$C$36=70),\"Dobro vam ide! Dodali ste\",\" \")","v":" "}]
[{"$nulls":8},{"$f":"IF(AND($B$15=\"Avionska karta\",$C$36=70),\"polje drugog reda u izvedenu\",\" \")","v":" "}]
[{"$nulls":8},{"$f":"IF(AND($B$15=\"Avionska karta\",$C$36=70),\"tabelu. Pomerite se nadole i \",\" \")","v":" "}]
[{"$nulls":8},{"$f":"IF(AND($B$15=\"Avionska karta\",$C$36=70),\"kliknite na dugme „Sledeće“…\",\" \")","v":" "}]
[]
[]
[]
[]
[null,"Oznake redova","Zbir od Iznos"]
[null,"Tata",{"v":2000,"d":"2,000 RSD"}]
[null,"Tijana",{"v":935,"d":"935 RSD"}]
[null,"Mama",{"v":1427,"d":"1,427 RSD"}]
[null,"Konačni zbir",{"v":4362,"d":"4,362 RSD"}]
{"$rows_empty":83}
[null,"Datum","Kupac","Tip","Iznos"]
[null,"2017-01-17","Tata","Sport",{"v":1000,"d":"1,000 RSD"}]
[null,"2017-01-17","Tata","Avionska karta",{"v":500,"d":"500 RSD"}]
[null,"2017-01-17","Tata","Porezi",{"v":500,"d":"500 RSD"}]
[null,"2017-02-20","Tijana","Muzika",{"v":20,"d":"20 RSD"}]
[null,"2017-02-25","Tijana","Karte",{"v":125,"d":"125 RSD"}]
[null,"2017-01-21","Tijana","Knjige",{"v":250,"d":"250 RSD"}]
[null,"2017-02-20","Tijana","Večere",{"v":20,"d":"20 RSD"}]
[null,"2017-02-25","Tijana","Odeća",{"v":125,"d":"125 RSD"}]
[null,"2017-01-21","Tijana","Časovi muzike",{"v":250,"d":"250 RSD"}]
[null,"2017-02-20","Tijana","Parking",{"v":20,"d":"20 RSD"}]
[null,"2017-02-25","Tijana","Elektronika",{"v":125,"d":"125 RSD"}]
[null,"2017-01-01","Mama","Gorivo",{"v":74,"d":"74 RSD"}]
[null,"2017-01-15","Mama","Hrana",{"v":235,"d":"235 RSD"}]
[null,"2017-01-21","Mama","Klupske članarine",{"v":125,"d":"125 RSD"}]
[null,"2017-02-02","Mama","Hrana",{"v":235,"d":"235 RSD"}]
[null,"2017-01-01","Mama","Medicinski troškovi",{"v":74,"d":"74 RSD"}]
[null,"2017-01-15","Mama","Struja",{"v":70,"d":"70 RSD"}]
[null,"2017-02-02","Mama","Stomatološki troškovi",{"v":235,"d":"235 RSD"}]
[null,"2017-01-01","Mama","Osiguranje vozila",{"v":74,"d":"74 RSD"}]
[null,"2017-01-15","Mama","Zdravstveno osiguranje",{"v":70,"d":"70 RSD"}]
[null,"2017-02-02","Mama","Osiguranje doma",{"v":235,"d":"235 RSD"}]

{"sheet":"15","index":15,"n_rows":121,"n_cols":7,"rows_kept":121}
["Ako treba da pojednostavite izvedena tabela, možete da skupite „nagore“ podatke polje drugog reda da vam ne smetaju. "]
["Izvedena tabela za ovaj primer nalazi se u ćelijama od F7 do G31. Izaberite ćeliju F8 da biste odabrali prvo polje reda za stavku „Tata“. Zatim, pritisnite kombinaciju tastera Alt+JN > taster Š da biste razvili drugo polje ili taster X da biste ga skupili."]
["Da biste nastavili sa ovim uputstvom, pritisnite kombinaciju tastera CTRL+PAGE DOWN. Da biste se vratili na prethodni list, pritisnite kombinaciju tastera CTRL+PAGE UP."]
[]
[]
[{"$nulls":5},{"$f":"IF(AND($F$9=\"Tijana\",$G$9=935),\"Sjajno!\",\" \")","v":" "}]
[{"$nulls":5},"Oznake redova","Zbir od Iznos"]
[{"$nulls":5},"Tata",{"v":2000,"d":"2,000 RSD"}]
[{"$nulls":5},"Avionska karta",{"v":500,"d":"500 RSD"}]
[{"$nulls":5},"Porezi",{"v":500,"d":"500 RSD"}]
[{"$nulls":5},"Sport",{"v":1000,"d":"1,000 RSD"}]
[{"$nulls":5},"Tijana",{"v":935,"d":"935 RSD"}]
[{"$nulls":5},"Časovi muzike",{"v":250,"d":"250 RSD"}]
[{"$nulls":5},"Elektronika",{"v":125,"d":"125 RSD"}]
[{"$nulls":5},"Karte",{"v":125,"d":"125 RSD"}]
[{"$nulls":5},"Knjige",{"v":250,"d":"250 RSD"}]
[{"$nulls":5},"Muzika",{"v":20,"d":"20 RSD"}]
[{"$nulls":5},"Odeća",{"v":125,"d":"125 RSD"}]
[{"$nulls":5},"Parking",{"v":20,"d":"20 RSD"}]
[{"$nulls":5},"Večere",{"v":20,"d":"20 RSD"}]
[{"$nulls":5},"Mama",{"v":1427,"d":"1,427 RSD"}]
[{"$nulls":5},"Gorivo",{"v":74,"d":"74 RSD"}]
[{"$nulls":5},"Hrana",{"v":470,"d":"470 RSD"}]
[{"$nulls":5},"Klupske članarine",{"v":125,"d":"125 RSD"}]
[{"$nulls":5},"Medicinski troškovi",{"v":74,"d":"74 RSD"}]
[{"$nulls":5},"Osiguranje doma",{"v":235,"d":"235 RSD"}]
[{"$nulls":5},"Osiguranje vozila",{"v":74,"d":"74 RSD"}]
[{"$nulls":5},"Stomatološki troškovi",{"v":235,"d":"235 RSD"}]
[{"$nulls":5},"Struja",{"v":70,"d":"70 RSD"}]
[{"$nulls":5},"Zdravstveno osiguranje",{"v":70,"d":"70 RSD"}]
[{"$nulls":5},"Konačni zbir",{"v":4362,"d":"4,362 RSD"}]
{"$rows_empty":68}
[null,"Datum","Kupac","Tip","Iznos"]
[null,"2017-01-17","Tata","Sport",{"v":1000,"d":"1,000 RSD"}]
[null,"2017-01-17","Tata","Avionska karta",{"v":500,"d":"500 RSD"}]
[null,"2017-01-17","Tata","Porezi",{"v":500,"d":"500 RSD"}]
[null,"2017-02-20","Tijana","Muzika",{"v":20,"d":"20 RSD"}]
[null,"2017-02-25","Tijana","Karte",{"v":125,"d":"125 RSD"}]
[null,"2017-01-21","Tijana","Knjige",{"v":250,"d":"250 RSD"}]
[null,"2017-02-20","Tijana","Večere",{"v":20,"d":"20 RSD"}]
[null,"2017-02-25","Tijana","Odeća",{"v":125,"d":"125 RSD"}]
[null,"2017-01-21","Tijana","Časovi muzike",{"v":250,"d":"250 RSD"}]
[null,"2017-02-20","Tijana","Parking",{"v":20,"d":"20 RSD"}]
[null,"2017-02-25","Tijana","Elektronika",{"v":125,"d":"125 RSD"}]
[null,"2017-01-01","Mama","Gorivo",{"v":74,"d":"74 RSD"}]
[null,"2017-01-15","Mama","Hrana",{"v":235,"d":"235 RSD"}]
[null,"2017-01-21","Mama","Klupske članarine",{"v":125,"d":"125 RSD"}]
[null,"2017-02-02","Mama","Hrana",{"v":235,"d":"235 RSD"}]
[null,"2017-01-01","Mama","Medicinski troškovi",{"v":74,"d":"74 RSD"}]
[null,"2017-01-15","Mama","Struja",{"v":70,"d":"70 RSD"}]
[null,"2017-02-02","Mama","Stomatološki troškovi",{"v":235,"d":"235 RSD"}]
[null,"2017-01-01","Mama","Osiguranje vozila",{"v":74,"d":"74 RSD"}]
[null,"2017-01-15","Mama","Zdravstveno osiguranje",{"v":70,"d":"70 RSD"}]
[null,"2017-02-02","Mama","Osiguranje doma",{"v":235,"d":"235 RSD"}]

{"sheet":"16","index":16,"n_rows":121,"n_cols":7,"rows_kept":121}
["Celo polje drugog reda takođe možete da skupite ili razvijete kako biste dodatno pojednostavili izvedena tabela."]
["Ovo je od ključne važnosti"]
["Izaberite opseg podataka izvedene tabele od ćelije F7 do ćelije G31, a zatim pritisnite kombinaciju tastera ALT+JN > taster X da biste skupili celu grupu. Nasuprot tome, kombinacija tastera ALT+JN > taster Š razvija celu grupu."]
["Da biste nastavili sa ovim uputstvom, pritisnite kombinaciju tastera CTRL+PAGE DOWN. Da biste se vratili na prethodni list, pritisnite kombinaciju tastera CTRL+PAGE UP."]
[]
[{"$nulls":5},{"$f":"IF(AND($F$9=\"Tijana\",$G$9=935),\"Tako je!\",\" \")","v":" "}]
[{"$nulls":5},"Oznake redova","Zbir od Iznos"]
[{"$nulls":5},"Tata",{"v":2000,"d":"2,000 RSD"}]
[{"$nulls":5},"Avionska karta",{"v":500,"d":"500 RSD"}]
[{"$nulls":5},"Porezi",{"v":500,"d":"500 RSD"}]
[{"$nulls":5},"Sport",{"v":1000,"d":"1,000 RSD"}]
[{"$nulls":5},"Tijana",{"v":935,"d":"935 RSD"}]
[{"$nulls":5},"Časovi muzike",{"v":250,"d":"250 RSD"}]
[{"$nulls":5},"Elektronika",{"v":125,"d":"125 RSD"}]
[{"$nulls":5},"Karte",{"v":125,"d":"125 RSD"}]
[{"$nulls":5},"Knjige",{"v":250,"d":"250 RSD"}]
[{"$nulls":5},"Muzika",{"v":20,"d":"20 RSD"}]
[{"$nulls":5},"Odeća",{"v":125,"d":"125 RSD"}]
[{"$nulls":5},"Parking",{"v":20,"d":"20 RSD"}]
[{"$nulls":5},"Večere",{"v":20,"d":"20 RSD"}]
[{"$nulls":5},"Mama",{"v":1427,"d":"1,427 RSD"}]
[{"$nulls":5},"Gorivo",{"v":74,"d":"74 RSD"}]
[{"$nulls":5},"Hrana",{"v":470,"d":"470 RSD"}]
[{"$nulls":5},"Klupske članarine",{"v":125,"d":"125 RSD"}]
[{"$nulls":5},"Medicinski troškovi",{"v":74,"d":"74 RSD"}]
[{"$nulls":5},"Osiguranje doma",{"v":235,"d":"235 RSD"}]
[{"$nulls":5},"Osiguranje vozila",{"v":74,"d":"74 RSD"}]
[{"$nulls":5},"Stomatološki troškovi",{"v":235,"d":"235 RSD"}]
[{"$nulls":5},"Struja",{"v":70,"d":"70 RSD"}]
[{"$nulls":5},"Zdravstveno osiguranje",{"v":70,"d":"70 RSD"}]
[{"$nulls":5},"Konačni zbir",{"v":4362,"d":"4,362 RSD"}]
{"$rows_empty":68}
[null,"Datum","Kupac","Tip","Iznos"]
[null,"2017-01-17","Tata","Sport",{"v":1000,"d":"1,000 RSD"}]
[null,"2017-01-17","Tata","Avionska karta",{"v":500,"d":"500 RSD"}]
[null,"2017-01-17","Tata","Porezi",{"v":500,"d":"500 RSD"}]
[null,"2017-02-20","Tijana","Muzika",{"v":20,"d":"20 RSD"}]
[null,"2017-02-25","Tijana","Karte",{"v":125,"d":"125 RSD"}]
[null,"2017-01-21","Tijana","Knjige",{"v":250,"d":"250 RSD"}]
[null,"2017-02-20","Tijana","Večere",{"v":20,"d":"20 RSD"}]
[null,"2017-02-25","Tijana","Odeća",{"v":125,"d":"125 RSD"}]
[null,"2017-01-21","Tijana","Časovi muzike",{"v":250,"d":"250 RSD"}]
[null,"2017-02-20","Tijana","Parking",{"v":20,"d":"20 RSD"}]
[null,"2017-02-25","Tijana","Elektronika",{"v":125,"d":"125 RSD"}]
[null,"2017-01-01","Mama","Gorivo",{"v":74,"d":"74 RSD"}]
[null,"2017-01-15","Mama","Hrana",{"v":235,"d":"235 RSD"}]
[null,"2017-01-21","Mama","Klupske članarine",{"v":125,"d":"125 RSD"}]
[null,"2017-02-02","Mama","Hrana",{"v":235,"d":"235 RSD"}]
[null,"2017-01-01","Mama","Medicinski troškovi",{"v":74,"d":"74 RSD"}]
[null,"2017-01-15","Mama","Struja",{"v":70,"d":"70 RSD"}]
[null,"2017-02-02","Mama","Stomatološki troškovi",{"v":235,"d":"235 RSD"}]
[null,"2017-01-01","Mama","Osiguranje vozila",{"v":74,"d":"74 RSD"}]
[null,"2017-01-15","Mama","Zdravstveno osiguranje",{"v":70,"d":"70 RSD"}]
[null,"2017-02-02","Mama","Osiguranje doma",{"v":235,"d":"235 RSD"}]

{"sheet":"17","index":17,"n_rows":107,"n_cols":14,"rows_kept":107}
["Možete da imate i više polje kolona. Ona takođe mogu da se skupe ili razviju."]
["Izvedena tabela za ovaj primer proteže se od ćelije B13 do ćelije M19. U ovom slučaju, imamo kategoriju „Tip“ u odeljku „Kolone“, koja obuhvata stavke za polja „Hrana“ i „Komunalne usluge“."]
["ISPROBAJTE OVO\nIzaberite polje „Hrana“ u ćeliji C14 i pritisnite kombinaciju tastera ALT+JN > taster X da biste skupili celo polje. Kombinacija tastera ALT+JN > taster Š ga razvija."]
["Da biste nastavili sa ovim uputstvom, pritisnite kombinaciju tastera CTRL+PAGE DOWN. Da biste se vratili na prethodni list, pritisnite kombinaciju tastera CTRL+PAGE UP."]
{"$rows_empty":7}
[null,null,{"$f":"IF(AND($C$16=398,$D$15=\"Jan\"),\"Bravo!\",\" \")","v":" "}]
[null,"Zbir od Iznos","Oznake kolona"]
[null,null,"Hrana",{"$nulls":4},"Hrana Zbir","Komunalne usluge",{"$nulls":3},"Komunalne usluge Zbir","Konačni zbir"]
[null,"Oznake redova","Jan","Feb","Mar","Apr","Mart",null,"Jan","Feb","Apr","Mart"]
[null,"Tijana",{"v":74,"d":"74 RSD"},{"v":74,"d":"74 RSD"},null,{"v":125,"d":"125 RSD"},{"v":125,"d":"125 RSD"},{"v":398,"d":"398 RSD"},{"$nulls":5},{"v":398,"d":"398 RSD"}]
[null,"Tata",{"v":235,"d":"235 RSD"},{"v":235,"d":"235 RSD"},{"v":235,"d":"235 RSD"},{"v":74,"d":"74 RSD"},null,{"v":779,"d":"779 RSD"},{"$nulls":5},{"v":779,"d":"779 RSD"}]
[null,"Mama",{"$nulls":6},{"v":1000,"d":"1,000 RSD"},{"v":1000,"d":"1,000 RSD"},{"v":70,"d":"70 RSD"},{"v":20,"d":"20 RSD"},{"v":2090,"d":"2,090 RSD"},{"v":2090,"d":"2,090 RSD"}]
[null,"Konačni zbir",{"v":309,"d":"309 RSD"},{"v":309,"d":"309 RSD"},{"v":235,"d":"235 RSD"},{"v":199,"d":"199 RSD"},{"v":125,"d":"125 RSD"},{"v":1177,"d":"1,177 RSD"},{"v":1000,"d":"1,000 RSD"},{"v":1000,"d":"1,000 RSD"},{"v":70,"d":"70 RSD"},{"v":20,"d":"20 RSD"},{"v":2090,"d":"2,090 RSD"},{"v":3267,"d":"3,267 RSD"}]
{"$rows_empty":75}
[null,"Mesec","Kupac","Tip","Iznos"]
[null,"Jan","Tijana","Hrana",{"v":74,"d":"74 RSD"}]
[null,"Jan","Tata","Hrana",{"v":235,"d":"235 RSD"}]
[null,"Jan","Mama","Komunalne usluge",{"v":1000,"d":"1,000 RSD"}]
[null,"Feb","Tijana","Hrana",{"v":74,"d":"74 RSD"}]
[null,"Feb","Tata","Hrana",{"v":235,"d":"235 RSD"}]
[null,"Feb","Mama","Komunalne usluge",{"v":1000,"d":"1,000 RSD"}]
[null,"Mart","Tijana","Hrana",{"v":125,"d":"125 RSD"}]
[null,"Mar","Tata","Hrana",{"v":235,"d":"235 RSD"}]
[null,"Mart","Mama","Komunalne usluge",{"v":20,"d":"20 RSD"}]
[null,"Apr","Tijana","Hrana",{"v":125,"d":"125 RSD"}]
[null,"Apr","Tata","Hrana",{"v":74,"d":"74 RSD"}]
[null,"Apr","Mama","Komunalne usluge",{"v":70,"d":"70 RSD"}]

{"sheet":"18","index":18,"n_rows":146,"n_cols":5,"rows_kept":146}
["Nešto što treba da imate na umu: Ako vam je potrebno više detalja, možete da dodate još mnogo polja reda ili kolone. U ovom primeru ima tri polja reda."]
["Izvedena tabela za ovaj primer nalazi se u ćelijama od D8 do E29 i sadrži polja za stavke „Godišnje doba“, „Kupac“ i „Tip“ u koloni D, sa poljem „Zbir od Iznos“ i koloni E."]
["SAVET STRUČNJAKA\nTo što možete da dodate mnogo polja ne znači da to i treba da uradite. U ovom primeru to dobro funkcioniše. Ali ponekad zbog previše polja sa svim tim uvlačenjima izvedena tabela može da postane suviše komplikovana da bi je druge osobe razumele. "]
["Da biste nastavili sa ovim uputstvom, pritisnite kombinaciju tastera CTRL+PAGE DOWN. Da biste se vratili na prethodni list, pritisnite kombinaciju tastera CTRL+PAGE UP."]
[]
[]
[]
[{"$nulls":3},"Oznake redova","Zbir od Iznos"]
[{"$nulls":3},"Jesen",{"v":5425,"d":"5,425 RSD"}]
[{"$nulls":3},"Mama",{"v":5425,"d":"5,425 RSD"}]
[{"$nulls":3},"Komunalne usluge",{"v":933,"d":"933 RSD"}]
[{"$nulls":3},"Osiguranje",{"v":1272,"d":"1,272 RSD"}]
[{"$nulls":3},"Renta",{"v":3220,"d":"3,220 RSD"}]
[{"$nulls":3},"Proleće",{"v":4760,"d":"4,760 RSD"}]
[{"$nulls":3},"Tata",{"v":4760,"d":"4,760 RSD"}]
[{"$nulls":3},"Komunalne usluge",{"v":1320,"d":"1,320 RSD"}]
[{"$nulls":3},"Osiguranje",{"v":1040,"d":"1,040 RSD"}]
[{"$nulls":3},"Renta",{"v":2400,"d":"2,400 RSD"}]
[{"$nulls":3},"Leto",{"v":3473,"d":"3,473 RSD"}]
[{"$nulls":3},"Mama",{"v":3473,"d":"3,473 RSD"}]
[{"$nulls":3},"Komunalne usluge",{"v":1133,"d":"1,133 RSD"}]
[{"$nulls":3},"Osiguranje",{"v":1080,"d":"1,080 RSD"}]
[{"$nulls":3},"Renta",{"v":1260,"d":"1,260 RSD"}]
[{"$nulls":3},"Zima",{"v":4100,"d":"4,100 RSD"}]
[{"$nulls":3},"Tata",{"v":4100,"d":"4,100 RSD"}]
[{"$nulls":3},"Komunalne usluge",{"v":1650,"d":"1,650 RSD"}]
[{"$nulls":3},"Osiguranje",{"v":1030,"d":"1,030 RSD"}]
[{"$nulls":3},"Renta",{"v":1420,"d":"1,420 RSD"}]
[{"$nulls":3},"Konačni zbir",{"v":17758,"d":"17,758 RSD"}]
{"$rows_empty":68}
[null,"Kupac","Godišnje doba","Tip","Iznos"]
[null,"Tata","Zima","Osiguranje",{"v":300,"d":"300 RSD"}]
[null,"Tata","Zima","Renta",{"v":200,"d":"200 RSD"}]
[null,"Tata","Zima","Komunalne usluge",{"v":400,"d":"400 RSD"}]
[null,"Tata","Zima","Osiguranje",{"v":300,"d":"300 RSD"}]
[null,"Tata","Zima","Renta",{"v":800,"d":"800 RSD"}]
[null,"Tata","Zima","Komunalne usluge",{"v":400,"d":"400 RSD"}]
[null,"Tata","Zima","Osiguranje",{"v":200,"d":"200 RSD"}]
[null,"Tata","Zima","Renta",{"v":300,"d":"300 RSD"}]
[null,"Tata","Zima","Komunalne usluge",{"v":450,"d":"450 RSD"}]
[null,"Tata","Zima","Osiguranje",{"v":230,"d":"230 RSD"}]
[null,"Tata","Zima","Renta",{"v":120,"d":"120 RSD"}]
[null,"Tata","Zima","Komunalne usluge",{"v":400,"d":"400 RSD"}]
[null,"Tata","Proleće","Osiguranje",{"v":210,"d":"210 RSD"}]
[null,"Tata","Proleće","Renta",{"v":300,"d":"300 RSD"}]
[null,"Tata","Proleće","Komunalne usluge",{"v":400,"d":"400 RSD"}]
[null,"Tata","Proleće","Osiguranje",{"v":230,"d":"230 RSD"}]
[null,"Tata","Proleće","Renta",{"v":900,"d":"900 RSD"}]
[null,"Tata","Proleće","Komunalne usluge",{"v":300,"d":"300 RSD"}]
[null,"Tata","Proleće","Osiguranje",{"v":200,"d":"200 RSD"}]
[null,"Tata","Proleće","Renta",{"v":1000,"d":"1,000 RSD"}]
[null,"Tata","Proleće","Komunalne usluge",{"v":220,"d":"220 RSD"}]
[null,"Tata","Proleće","Osiguranje",{"v":400,"d":"400 RSD"}]
[null,"Tata","Proleće","Renta",{"v":200,"d":"200 RSD"}]
[null,"Tata","Proleće","Komunalne usluge",{"v":400,"d":"400 RSD"}]
[null,"Mama","Leto","Osiguranje",{"v":100,"d":"100 RSD"}]
[null,"Mama","Leto","Renta",{"v":30,"d":"30 RSD"}]
[null,"Mama","Leto","Komunalne usluge",{"v":123,"d":"123 RSD"}]
[null,"Mama","Leto","Osiguranje",{"v":300,"d":"300 RSD"}]
[null,"Mama","Leto","Renta",{"v":350,"d":"350 RSD"}]
[null,"Mama","Leto","Komunalne usluge",{"v":230,"d":"230 RSD"}]
[null,"Mama","Leto","Osiguranje",{"v":120,"d":"120 RSD"}]
[null,"Mama","Leto","Renta",{"v":640,"d":"640 RSD"}]
[null,"Mama","Leto","Komunalne usluge",{"v":530,"d":"530 RSD"}]
[null,"Mama","Leto","Osiguranje",{"v":560,"d":"560 RSD"}]
[null,"Mama","Leto","Renta",{"v":240,"d":"240 RSD"}]
[null,"Mama","Leto","Komunalne usluge",{"v":250,"d":"250 RSD"}]
[null,"Mama","Jesen","Osiguranje",{"v":62,"d":"62 RSD"}]
[null,"Mama","Jesen","Renta",{"v":600,"d":"600 RSD"}]
[null,"Mama","Jesen","Komunalne usluge",{"v":340,"d":"340 RSD"}]
[null,"Mama","Jesen","Osiguranje",{"v":205,"d":"205 RSD"}]
[null,"Mama","Jesen","Renta",{"v":500,"d":"500 RSD"}]
[null,"Mama","Jesen","Komunalne usluge",{"v":403,"d":"403 RSD"}]
[null,"Mama","Jesen","Osiguranje",{"v":503,"d":"503 RSD"}]
[null,"Mama","Jesen","Renta",{"v":2000,"d":"2,000 RSD"}]
[null,"Mama","Jesen","Komunalne usluge",{"v":140,"d":"140 RSD"}]
[null,"Mama","Jesen","Osiguranje",{"v":502,"d":"502 RSD"}]
[null,"Mama","Jesen","Renta",{"v":120,"d":"120 RSD"}]
[null,"Mama","Jesen","Komunalne usluge",{"v":50,"d":"50 RSD"}]

{"sheet":"19","index":19,"n_rows":55,"n_cols":5,"rows_kept":55}
["Da li ste spremni za još vežbanja? Iskoristite priliku da pregledate podatke ispod u ćelijama od B7 do E55. Kada budete spremni, idite na sledeći list kako biste vežbali to što ste do sada naučili. "]
["Nema potrebe da pregledate sve redove podataka. Pregledajte samo imena polja u redu 7. Sa njima ćete raditi na sledećem listu. "]
["Da biste nastavili sa ovim uputstvom, pritisnite kombinaciju tastera CTRL+PAGE DOWN. Da biste se vratili na prethodni list, pritisnite kombinaciju tastera CTRL+PAGE UP."]
[]
[]
[]
[null,"Godišnje doba","Predstavnik prodaje","Proizvod","Prodato jedinica"]
[null,"Zima","Jovana","Pomorandže",300]
[null,"Zima","Mihajlo","Grejpfrut",200]
[null,"Zima","Sava","Jabuke",400]
[null,"Zima","Jovana","Banane",300]
[null,"Zima","Mihajlo","Pomorandže",800]
[null,"Zima","Sava","Grejpfrut",400]
[null,"Zima","Jovana","Jabuke",200]
[null,"Zima","Mihajlo","Banane",300]
[null,"Zima","Sava","Pomorandže",450]
[null,"Zima","Jovana","Grejpfrut",230]
[null,"Zima","Mihajlo","Jabuke",120]
[null,"Zima","Sava","Banane",400]
[null,"Proleće","Jovana","Cvekle",210]
[null,"Proleće","Mihajlo","Krompiri",300]
[null,"Proleće","Sava","Zelena salata",400]
[null,"Proleće","Jovana","Rotkvice",230]
[null,"Proleće","Mihajlo","Cvekle",900]
[null,"Proleće","Sava","Krompiri",300]
[null,"Proleće","Jovana","Zelena salata",200]
[null,"Proleće","Mihajlo","Rotkvice",{"v":1000,"d":"1,000"}]
[null,"Proleće","Sava","Cvekle",220]
[null,"Proleće","Jovana","Krompiri",400]
[null,"Proleće","Mihajlo","Zelena salata",200]
[null,"Proleće","Sava","Rotkvice",400]
[null,"Leto","Jovana","Borovnice",100]
[null,"Leto","Mihajlo","Jagode",30]
[null,"Leto","Sava","Grožđe",123]
[null,"Leto","Jovana","Bundeve",300]
[null,"Leto","Mihajlo","Borovnice",350]
[null,"Leto","Sava","Jagode",230]
[null,"Leto","Jovana","Grožđe",120]
[null,"Leto","Mihajlo","Bundeve",640]
[null,"Leto","Sava","Borovnice",530]
[null,"Leto","Jovana","Jagode",560]
[null,"Leto","Mihajlo","Grožđe",240]
[null,"Leto","Sava","Bundeve",250]
[null,"Jesen","Jovana","Tikva",62]
[null,"Jesen","Mihajlo","Tikvice",600]
[null,"Jesen","Sava","Jabuke",340]
[null,"Jesen","Jovana","Pomorandže",205]
[null,"Jesen","Mihajlo","Tikva",500]
[null,"Jesen","Sava","Tikvice",403]
[null,"Jesen","Jovana","Jabuke",503]
[null,"Jesen","Mihajlo","Pomorandže",{"v":2000,"d":"2,000"}]
[null,"Jesen","Sava","Tikva",140]
[null,"Jesen","Jovana","Tikvice",502]
[null,"Jesen","Mihajlo","Jabuke",120]
[null,"Jesen","Sava","Pomorandže",50]

{"sheet":"20","index":20,"n_rows":17,"n_cols":11,"rows_kept":17}
["1. Oblast izvedene tabele za ovaj primer nalazi se u ćelijama od B12 do C17. Idite na bilo koju od tih ćelija. \n\n"]
["2. Pritisnite tastere ALT+JN, L da biste pokrenuli listu polja izvedene tabele. Fokus se podrazumevano postavlja na okvir za tekst „Iyvršite pretraga“: Otkucajte reči za pretragu ili uređivanje. Ne kucajte ništa, umesto toga jednom pritisnite taster Tab. NAPOMENA: Ako se lista polja ne pokrene, ponovo pritisnite kombinaciju tastera ALT+JN, a zatim taster L."]
["3. Pritisnite tastere sa strelicama da biste prešli na polje „Predstavnik prodaje“. Pritisnite RAZMAKNICU da biste dodali polje „Predstavnik prodaje“ u oblast „Redovi“. Ako u oblasti „Kolone“ želite da prikažete detalje stavke „Predstavnik prodaje“, koristite taster Tab da biste se premestili na polje „Predstavnik prodaje“ u odeljku „Red“, a zatim pritisnite RAZMAKNICU i izaberite stavku „Premesti u oznake kolona“ Pritisnite taster ESC da biste izašli iz okna sa polja izvedene tabele. "]
["4. Odredite ko je prodao najviše stavki tokom jeseni, a zatim izvršite izbor u ćeliji K8. "]
["Da biste nastavili sa ovim uputstvom, pritisnite kombinaciju tastera CTRL+PAGE DOWN. Da biste se vratili na prethodni list, pritisnite kombinaciju tastera CTRL+PAGE UP."]
[]
[{"$nulls":10},"Izaberite jedno:"]
[]
[{"$nulls":10},{"$f":"IF($K$8=\"Mihajlo\",\"Tačno!\",IF($K$8=\"Sava\",\"Pokušajte ponovo...\",IF($K$8=\"Jovana\",\"Ne baš tako...\",IF($K$8=\" \",\" \",\" \"))))","v":" "}]
[]
[]
[null,"Oznake redova","Zbir od Prodato jedinica"]
[null,"Jesen",{"v":5425,"d":"5,425"}]
[null,"Proleće",{"v":4760,"d":"4,760"}]
[null,"Leto",{"v":3473,"d":"3,473"}]
[null,"Zima",{"v":4100,"d":"4,100"}]
[null,"Konačni zbir",{"v":17758,"d":"17,758"}]

{"sheet":"21","index":21,"n_rows":14,"n_cols":10,"rows_kept":14}
["1. Kliknite na ćeliju B13 da biste aktivirali izvedenu tabelu pod imenom „Zbir prodatih jedinica“.\n\n"]
["2. Pritisnite tastere ALT+JN, L da biste pokrenuli listu polja izvedene tabele. Fokus se podrazumevano postavlja na okvir za tekst „Iyvršite pretraga“: Otkucajte reči za pretragu ili uređivanje. Ne kucajte ništa, umesto toga jednom pritisnite taster Tab. NAPOMENA: Ako se lista polja ne pokrene, ponovo pritisnite kombinaciju tastera ALT+JN, a zatim taster L."]
["3. Koristite tastere sa strelicama i RAZMAKNICU da biste razvili primer u vertikalnu izvedenu tabelu koja sadrži godišnja doba sa leve strane i predstavnike prodaje uvučene ispod godišnjih doba. Pritisnite taster ESC da biste izašli iz okna polja izvedene tabele. "]
["Da biste nastavili sa ovim uputstvom, pritisnite kombinaciju tastera CTRL+PAGE DOWN. Da biste se vratili na prethodni list, pritisnite kombinaciju tastera CTRL+PAGE UP."]
[{"$nulls":9},{"$f":"IF(AND(B$14=\"Jesen\",$C$17=933),\"Svaka čast! Postavili ste polje\",\" \")","v":" "}]
[{"$nulls":9},{"$f":"IF(AND(B$14=\"Jesen\",$C$17=933),\"sekundarnog reda. Sada se pomerite\",\" \")","v":" "}]
[{"$nulls":9},{"$f":"IF(AND(B$14=\"Jesen\",$C$17=933),\"nadole i kliknite na dugme „Sledeće“.\",\" \")","v":" "}]
[]
[]
[]
[]
[]
[null,"Zbir od Prodato jedinica"]
[null,{"v":17758,"d":"17,758"}]

{"sheet":"22","index":22,"n_rows":14,"n_cols":10,"rows_kept":14}
["1. Kliknite na ćeliju B13 da biste aktivirali izvedenu tabelu pod imenom „Zbir prodatih jedinica“."]
["2. Pritisnite tastere ALT+JN, L da biste pokrenuli listu polja izvedene tabele. Fokus se podrazumevano postavlja na okvir za tekst „Iyvršite pretraga“: Otkucajte reči za pretragu ili uređivanje. Ne kucajte ništa, umesto toga jednom pritisnite taster Tab. NAPOMENA: Ako se lista polja ne pokrene, ponovo pritisnite kombinaciju tastera ALT+JN, a zatim taster L."]
["3. Koristite tastere sa strelicama i RAZMAKNICU da biste izmenili primer tako da prikazuje svaki proizvod i svako godišnje doba u posebnom redu."]
["Da biste nastavili sa ovim uputstvom, pritisnite kombinaciju tastera CTRL+PAGE DOWN. Da biste se vratili na prethodni list, pritisnite kombinaciju tastera CTRL+PAGE UP.",{"$nulls":8},{"$f":"IF(AND($B$15=\"Banane\",$G$28=800),\"Svaka čast! Postavili ste\",\" \")","v":" "}]
[{"$nulls":9},{"$f":"IF(AND($B$15=\"Banane\",$G$28=800),\"polje reda sa leve strane,\",\" \")","v":" "}]
[{"$nulls":9},{"$f":"IF(AND($B$15=\"Banane\",$G$28=800),\"i polje kolone sa četiri nove\",\" \")","v":" "}]
[{"$nulls":9},{"$f":"IF(AND($B$15=\"Banane\",$G$28=800),\"kolone. Pomerite se nadole i\",\" \")","v":" "}]
[{"$nulls":9},{"$f":"IF(AND($B$15=\"Banane\",$G$28=800),\"kliknite na dugme „Sledeće“...\",\" \")","v":" "}]
[]
[]
[]
[]
[null,"Zbir od Prodato jedinica"]
[null,{"v":17758,"d":"17,758"}]

{"sheet":"23","index":23,"n_rows":16,"n_cols":18,"rows_kept":16}
["1. Kliknite na ćeliju B13 da biste aktivirali izvedenu tabelu pod imenom „Zbir prodatih jedinica“.\n\n"]
["2. Pritisnite tastere ALT+JN, L da biste pokrenuli listu polja izvedene tabele. Fokus se podrazumevano postavlja na okvir za tekst „Iyvršite pretraga“: Otkucajte reči za pretragu ili uređivanje. Ne kucajte ništa, umesto toga jednom pritisnite taster Tab. NAPOMENA: Ako se lista polja ne pokrene, ponovo pritisnite kombinaciju tastera ALT+JN, a zatim taster L."]
["3. Koristite tastere sa strelicama i RAZMAKNICU da biste izmenili primer tako da prikazuje predstavnike prodaje sa leve strane sa godišnjim dobima uvučenim ispod njih."]
["Da biste nastavili sa ovim uputstvom, pritisnite kombinaciju tastera CTRL+PAGE DOWN. Da biste se vratili na prethodni list, pritisnite kombinaciju tastera CTRL+PAGE UP."]
[{"$nulls":9},{"$f":"IF(AND($B$14=\"Sava\",$C$14=5036),\"Svaka čast! Podaci se sada\",\" \")","v":" "}]
[{"$nulls":9},{"$f":"IF(AND($B$14=\"Sava\",$C$14=5036),\"lakše čitaju. Pomerite se nadole\",\" \")","v":" "}]
[{"$nulls":9},{"$f":"IF(AND($B$14=\"Sava\",$C$14=5036),\"i kliknite na dugme „Sledeće“...\",\" \")","v":" "}]
[]
[]
[]
[]
[]
[null,null,"Oznake kolona"]
[null,null,"Sava",{"$nulls":3},"Sava Zbir","Mihajlo",{"$nulls":3},"Mihajlo Zbir","Jovana",{"$nulls":3},"Jovana Zbir","Konačni zbir"]
[null,null,"Jesen","Proleće","Leto","Zima",null,"Jesen","Proleće","Leto","Zima",null,"Jesen","Proleće","Leto","Zima"]
[null,"Zbir od Prodato jedinica",933,{"v":1320,"d":"1,320"},{"v":1133,"d":"1,133"},{"v":1650,"d":"1,650"},{"v":5036,"d":"5,036"},{"v":3220,"d":"3,220"},{"v":2400,"d":"2,400"},{"v":1260,"d":"1,260"},{"v":1420,"d":"1,420"},{"v":8300,"d":"8,300"},{"v":1272,"d":"1,272"},{"v":1040,"d":"1,040"},{"v":1080,"d":"1,080"},{"v":1030,"d":"1,030"},{"v":4422,"d":"4,422"},{"v":17758,"d":"17,758"}]

{"sheet":"24","index":24,"n_rows":14,"n_cols":9,"rows_kept":14}
["1. Kliknite na ćeliju B13 da biste aktivirali izvedenu tabelu pod imenom „Zbir prodatih jedinica“."]
["2. Pritisnite tastere ALT+JT, L da biste pokrenuli listu polja izvedene tabele. Fokus se podrazumevano postavlja na okvir za tekst „Pretraga“: Otkucajte reči za pretragu ili uređivanje. Ne kucajte ništa, umesto toga jednom pritisnite taster Tab. NAPOMENA: Ako se lista polja ne pokrene, ponovo pritisnite kombinaciju tastera ALT+JT, a zatim taster L."]
["3. Koristite tastere sa strelicama i RAZMAKNICU da biste izmenili primer tako da svaki predstavnik prodaje ima posebna polja kolone sa godišnjim dobima sa leve strane i proizvodima uvučenim ispod njih."]
["4. Izaberite ćeliju I9 i odaberite koliko grejpfruta je Sava prodao tokom zime."]
["Da biste nastavili sa ovim uputstvom, pritisnite kombinaciju tastera CTRL+PAGE DOWN. Da biste se vratili na prethodni list, pritisnite kombinaciju tastera CTRL+PAGE UP."]
[]
[]
[{"$nulls":8},"Izaberite jedno:"]
[]
[{"$nulls":8},{"$f":"IF($I$9=400,\"Tačno!\",IF($I$9=530,\"Pokušajte ponovo...\",IF($I$9=123,\"Ne baš tako...\",\" \")))","v":" "}]
[]
[]
[null,"Zbir od Prodato jedinica"]
[null,{"v":17758,"d":"17,758"}]

{"sheet":"Saznajte više","index":25,"n_rows":8,"n_cols":1,"rows_kept":8}
["Svaka čast. Zar izvedene tabele nisu sjajne?"]
["Ali podstičemo vas da nastavite! Postoji još mnogo toga što možete da otkrijete..."]
["Dodatne informacije o izvedenim tabelama\nOtkrijte šta još možete da uradite tako što ćete pročitati ovaj korisni članak o izvedenim tabelama."]
["Osnovni podaci o osvežavanju\nPročitajte ovaj važan članak o tome kako da osvežite izvedene tabele. "]
["Zajednica\nPovežite se sa drugim fanovima programa Excel. Oni vam mogu pomoći i vi možete pomoći njima."]
[]
[]
[" "]